[Event "*** Titled Tuesday 3|2 Blitz"]
[Site "Chess.com"]
[Date "2015.07.07"]
[Round "3"]
[White "eltenedor"]
[Black "ashookk"]
[Result "1/2-1/2"]
[WhiteElo "2003"]
[BlackElo "1956"]
[TimeControl "180+2"]
[EndTime "11:37:23 PDT"]
[Termination "Game drawn - insufficient material"]

1. c4 {[%clk 0:03:01.9]} 1... Nf6 {[%clk 0:02:59.3]} 2. g3 {[%clk 0:03:02.6]}
2... c6 {[%clk 0:02:59.2]} 3. Nf3 {[%clk 0:03:00.6]} 3... d5 {[%clk 0:03:01.1]}
4. d4 {[%clk 0:03:00.1]} 4... a6 {[%clk 0:02:47.5]} 5. Nbd2 {[%clk 0:03:00.3]}
5... b5 {[%clk 0:02:46.2]} 6. b3 {[%clk 0:02:56]} 6... e6 {[%clk 0:02:45.3]} 7.
Bg2 {[%clk 0:02:56.4]} 7... Be7 {[%clk 0:02:45]} 8. O-O {[%clk 0:02:57]} 8...
O-O {[%clk 0:02:46.3]} 9. Ne5 {[%clk 0:02:54.9]} 9... Nfd7 {[%clk 0:02:44.5]}
10. Bb2 {[%clk 0:02:46.6]} 10... Nxe5 {[%clk 0:02:44.4]} 11. dxe5 {[%clk
0:02:47.1]} 11... Ra7 {[%clk 0:02:24.8]} 12. Qc2 {[%clk 0:02:40]} 12... Nd7
{[%clk 0:02:15.3]} 13. e4 {[%clk 0:02:36.1]} 13... dxc4 {[%clk 0:02:14.9]} 14.
bxc4 {[%clk 0:02:36.2]} 14... Nc5 {[%clk 0:02:09.6]} 15. Rad1 {[%clk 0:02:23.5]}
15... Qa5 {[%clk 0:01:59.2]} 16. Bc3 {[%clk 0:02:16.6]} 16... Qa4 {[%clk
0:01:55.2]} 17. Qxa4 {[%clk 0:01:52.6]} 17... Nxa4 {[%clk 0:01:51.5]} 18. Ba1
{[%clk 0:01:53.1]} 18... Rd7 {[%clk 0:01:43]} 19. cxb5 {[%clk 0:01:42.3]} 19...
cxb5 {[%clk 0:01:38.5]} 20. Nb3 {[%clk 0:01:42.6]} 20... Rfd8 {[%clk 0:01:38.6]}
21. Rxd7 {[%clk 0:01:36.3]} 21... Rxd7 {[%clk 0:01:36.2]} 22. Rc1 {[%clk
0:01:37]} 22... Bb7 {[%clk 0:01:36.5]} 23. f4 {[%clk 0:01:10.1]} 23... Ba3
{[%clk 0:01:32.6]} 24. Rc2 {[%clk 0:00:59.1]} 24... h5 {[%clk 0:01:17.3]} 25.
Bf3 {[%clk 0:00:52.5]} 25... g6 {[%clk 0:01:13.6]} 26. Kf2 {[%clk 0:00:46.8]}
26... Bb4 {[%clk 0:01:00.7]} 27. Ke3 {[%clk 0:00:37.3]} 27... Nb6 {[%clk
0:00:41.9]} 28. Be2 {[%clk 0:00:28]} 28... Na4 {[%clk 0:00:39.6]} 29. Bd4 {[%clk
0:00:26.9]} 29... Kf8 {[%clk 0:00:23.7]} 30. h3 {[%clk 0:00:26.7]} 30... Ke7
{[%clk 0:00:21.4]} 31. g4 {[%clk 0:00:26.9]} 31... hxg4 {[%clk 0:00:23.3]} 32.
hxg4 {[%clk 0:00:27.4]} 32... Kd8 {[%clk 0:00:20.7]} 33. Bd3 {[%clk 0:00:19.4]}
33... Rc7 {[%clk 0:00:21.5]} 34. Rh2 {[%clk 0:00:19.3]} 34... Ke7 {[%clk
0:00:22.1]} 35. f5 {[%clk 0:00:19]} 35... exf5 {[%clk 0:00:23.2]} 36. exf5
{[%clk 0:00:18.7]} 36... gxf5 {[%clk 0:00:24.4]} 37. gxf5 {[%clk 0:00:18.6]}
37... Bc3 {[%clk 0:00:24.9]} 38. f6+ {[%clk 0:00:10.1]} 38... Ke6 {[%clk
0:00:25.5]} 39. Rf2 {[%clk 0:00:09.5]} 39... Bxd4+ {[%clk 0:00:27]} 40. Nxd4+
{[%clk 0:00:10.5]} 40... Kd5 {[%clk 0:00:27.3]} 41. Rf5 {[%clk 0:00:10.3]} 41...
Nc3 {[%clk 0:00:27.4]} 42. e6+ {[%clk 0:00:10.2]} 42... Kd6 {[%clk 0:00:27.1]}
43. e7 {[%clk 0:00:10.8]} 43... Rc8 {[%clk 0:00:28.2]} 44. Rg5 {[%clk 0:00:08]}
44... Nd5+ {[%clk 0:00:29.3]} 45. Kd2 {[%clk 0:00:07.8]} 45... Nxf6 {[%clk
0:00:30.5]} 46. Nf5+ {[%clk 0:00:08.5]} 46... Ke6 {[%clk 0:00:31.8]} 47. Rg7
{[%clk 0:00:07.5]} 47... Be4 {[%clk 0:00:13.8]} 48. Nd4+ {[%clk 0:00:05]} 48...
Kxe7 {[%clk 0:00:14.7]} 49. Bxe4 {[%clk 0:00:04.9]} 49... Nxe4+ {[%clk
0:00:11.8]} 50. Ke3 {[%clk 0:00:05.8]} 50... Nc5 {[%clk 0:00:12.6]} 51. Rh7
{[%clk 0:00:05.4]} 51... Ne6 {[%clk 0:00:13.2]} 52. Nf5+ {[%clk 0:00:05.4]}
52... Kf6 {[%clk 0:00:14.5]} 53. Ng3 {[%clk 0:00:06.2]} 53... Rc3+ {[%clk
0:00:15.2]} 54. Kf2 {[%clk 0:00:06.5]} 54... Ng5 {[%clk 0:00:14.4]} 55. Rh6+
{[%clk 0:00:04.4]} 55... Kg7 {[%clk 0:00:13.8]} 56. Rxa6 {[%clk 0:00:05.2]}
56... Nh3+ {[%clk 0:00:12.5]} 57. Kg2 {[%clk 0:00:06]} 57... Nf4+ {[%clk
0:00:13.7]} 58. Kf2 {[%clk 0:00:07.1]} 58... Nd3+ {[%clk 0:00:14.8]} 59. Kg2
{[%clk 0:00:06.6]} 59... Nb4 {[%clk 0:00:16]} 60. Ne4 {[%clk 0:00:06.3]} 60...
Nxa6 {[%clk 0:00:04.7]} 61. Nxc3 {[%clk 0:00:06.5]} 61... b4 {[%clk 0:00:06.6]}
62. Nd5 {[%clk 0:00:06.2]} 62... Kg6 {[%clk 0:00:07.5]} 63. Kf3 {[%clk
0:00:07.3]} 63... Kf5 {[%clk 0:00:08.3]} 64. Ke3 {[%clk 0:00:08.4]} 64... Ke5
{[%clk 0:00:09.5]} 65. Nf4 {[%clk 0:00:07.1]} 65... f5 {[%clk 0:00:11.4]} 66.
Ne2 {[%clk 0:00:06.3]} 66... Nc5 {[%clk 0:00:12.6]} 67. Kd2 {[%clk 0:00:06.2]}
67... Ne4+ {[%clk 0:00:13.7]} 68. Kc2 {[%clk 0:00:06.6]} 68... f4 {[%clk
0:00:13.8]} 69. Nxf4 {[%clk 0:00:04.5]} 69... Kxf4 {[%clk 0:00:14.9]} 70. Kb3
{[%clk 0:00:05.6]} 70... Ke5 {[%clk 0:00:16.8]} 71. Kxb4 {[%clk 0:00:06.6]}
71... Kd6 {[%clk 0:00:18.7]} 72. Kb5 {[%clk 0:00:07.6]} 72... Kc7 {[%clk
0:00:20.3]} 73. Kc4 {[%clk 0:00:06.4]} 73... Kb8 {[%clk 0:00:21.4]} 74. Kd4
{[%clk 0:00:07.3]} 74... Nd6 {[%clk 0:00:22.8]} 75. Kd5 {[%clk 0:00:08.3]} 75...
Nb7 {[%clk 0:00:24.7]} 76. Kc6 {[%clk 0:00:08.9]} 76... Ka7 {[%clk 0:00:26.6]}
77. Kd5 {[%clk 0:00:10]} 77... Ka6 {[%clk 0:00:28]} 78. Ke6 {[%clk 0:00:11.3]}
78... Ka5 {[%clk 0:00:29.2]} 79. Kd5 {[%clk 0:00:12.6]} 79... Nc5 {[%clk
0:00:30.8]} 80. Kxc5 {[%clk 0:00:12.9]} 80... Ka4 {[%clk 0:00:32.7]} 81. Kd5
{[%clk 0:00:14]} 81... Ka3 {[%clk 0:00:34.1]} 82. Kc5 {[%clk 0:00:15.3]} 82...
Kxa2 {[%clk 0:00:36]} 1/2-1/2

[Event "*** Titled Tuesday 3|2 Blitz"]
[Site "Chess.com"]
[Date "2015.07.07"]
[Round "3"]
[White "chessloveyou"]
[Black "MasterLeif"]
[Result "1/2-1/2"]
[WhiteElo "1985"]
[BlackElo "2282"]
[TimeControl "180+2"]
[EndTime "11:38:27 PDT"]
[Termination "Game drawn by repetition"]

1. d4 {[%clk 0:03:01.9]} 1... d5 {[%clk 0:03:00.1]} 2. Nf3 {[%clk 0:03:01.8]}
2... Nf6 {[%clk 0:03:00.6]} 3. g3 {[%clk 0:03:02]} 3... g6 {[%clk 0:03:01.1]} 4.
Bg2 {[%clk 0:03:02.3]} 4... Bg7 {[%clk 0:03:02.7]} 5. O-O {[%clk 0:03:02.1]}
5... O-O {[%clk 0:03:04.3]} 6. c4 {[%clk 0:03:02]} 6... c6 {[%clk 0:03:04.3]} 7.
cxd5 {[%clk 0:03:01.9]} 7... cxd5 {[%clk 0:03:05.1]} 8. Nc3 {[%clk 0:03:02.1]}
8... Nc6 {[%clk 0:03:06.7]} 9. Bf4 {[%clk 0:03:01.9]} 9... Bf5 {[%clk
0:03:04.7]} 10. Ne5 {[%clk 0:02:54.7]} 10... Rc8 {[%clk 0:03:02.9]} 11. Nxc6
{[%clk 0:02:49.8]} 11... Rxc6 {[%clk 0:03:01.2]} 12. Nxd5 {[%clk 0:02:42.1]}
12... Nxd5 {[%clk 0:03:01.5]} 13. e4 {[%clk 0:02:42.9]} 13... Be6 {[%clk
0:03:02.6]} 14. exd5 {[%clk 0:02:36]} 14... Bxd5 {[%clk 0:03:04.5]} 15. Be5
{[%clk 0:02:28.7]} 15... Bxg2 {[%clk 0:03:04.2]} 16. Bxg7 {[%clk 0:02:13.6]}
16... Kxg7 {[%clk 0:02:11.4]} 17. Kxg2 {[%clk 0:02:12.6]} 17... Qd5+ {[%clk
0:02:10.9]} 18. Kg1 {[%clk 0:02:05.6]} 18... Rd8 {[%clk 0:02:11.4]} 19. Qe2
{[%clk 0:02:06.2]} 19... Re6 {[%clk 0:02:07.8]} 20. Qc2 {[%clk 0:01:55.7]} 20...
Rc6 {[%clk 0:02:04.3]} 21. Qe2 {[%clk 0:01:55.4]} 21... e6 {[%clk 0:02:03.1]}
22. Rfd1 {[%clk 0:01:46.2]} 22... Rcd6 {[%clk 0:01:56.7]} 23. b3 {[%clk
0:01:37.5]} 23... Qa5 {[%clk 0:01:54.7]} 24. Rac1 {[%clk 0:01:29.6]} 24... Rxd4
{[%clk 0:01:46.7]} 25. Rxd4 {[%clk 0:01:10.7]} 25... Rxd4 {[%clk 0:01:48.6]} 26.
Qf3 {[%clk 0:01:09.2]} 26... Qd5 {[%clk 0:01:44.5]} 27. Qxd5 {[%clk 0:01:07.7]}
27... Rxd5 {[%clk 0:01:44.8]} 28. Rc7 {[%clk 0:01:06.3]} 28... Rb5 {[%clk
0:01:45]} 29. f4 {[%clk 0:01:07.2]} 29... h5 {[%clk 0:01:42.7]} 30. Kf2 {[%clk
0:01:08]} 30... Kf6 {[%clk 0:01:43.9]} 31. Kf3 {[%clk 0:01:08.8]} 31... Rb4
{[%clk 0:01:44.5]} 32. h3 {[%clk 0:01:07.9]} 32... a5 {[%clk 0:01:43.1]} 33. g4
{[%clk 0:01:01.6]} 33... hxg4+ {[%clk 0:01:38]} 34. hxg4 {[%clk 0:01:02.7]}
34... b6 {[%clk 0:01:20]} 35. g5+ {[%clk 0:01:01.9]} 35... Kg7 {[%clk
0:01:21.3]} 36. Rb7 {[%clk 0:00:59.8]} 36... Rb5 {[%clk 0:01:19.3]} 37. Ke4
{[%clk 0:00:56.7]} 37... Rb4+ {[%clk 0:01:15.5]} 38. Kf3 {[%clk 0:00:57.6]}
38... Kf8 {[%clk 0:01:08.2]} 39. Ke3 {[%clk 0:00:49.6]} 39... Ke8 {[%clk
0:01:08.5]} 40. Kf3 {[%clk 0:00:50.1]} 40... Rb5 {[%clk 0:01:01.6]} 41. Ke4
{[%clk 0:00:50.5]} 41... Rb4+ {[%clk 0:01:02.7]} 42. Kf3 {[%clk 0:00:51.3]}
42... a4 {[%clk 0:00:54.5]} 43. bxa4 {[%clk 0:00:50.6]} 43... Rxa4 {[%clk
0:00:56.4]} 44. Rxb6 {[%clk 0:00:50.3]} 44... Rxa2 {[%clk 0:00:58]} 45. Rb7
{[%clk 0:00:51.4]} 45... Rd2 {[%clk 0:00:57.3]} 46. Ke4 {[%clk 0:00:51.5]} 46...
Rd7 {[%clk 0:00:58.2]} 47. Rb5 {[%clk 0:00:45.4]} 47... Ke7 {[%clk 0:00:55.3]}
48. Ke5 {[%clk 0:00:44.6]} 48... Rc7 {[%clk 0:00:53.7]} 49. Ra5 {[%clk
0:00:45.2]} 49... Rc4 {[%clk 0:00:45.2]} 50. Ra7+ {[%clk 0:00:45.7]} 50... Kf8
{[%clk 0:00:45.7]} 51. Rb7 {[%clk 0:00:43.4]} 51... Kg7 {[%clk 0:00:44.9]} 52.
Ra7 {[%clk 0:00:43.1]} 52... Rc5+ {[%clk 0:00:43.9]} 53. Ke4 {[%clk 0:00:43.6]}
53... Rb5 {[%clk 0:00:45.8]} 54. Rc7 {[%clk 0:00:44]} 54... Rb1 {[%clk
0:00:44.7]} 55. Ra7 {[%clk 0:00:44]} 55... Re1+ {[%clk 0:00:45.7]} 56. Kf3
{[%clk 0:00:44.1]} 56... e5 {[%clk 0:00:43.1]} 57. fxe5 {[%clk 0:00:44.2]} 57...
Rxe5 {[%clk 0:00:45]} 58. Kf4 {[%clk 0:00:45.4]} 58... Re1 {[%clk 0:00:44.1]}
59. Rb7 {[%clk 0:00:45.5]} 59... Kf8 {[%clk 0:00:45.1]} 60. Kg4 {[%clk
0:00:44.6]} 60... Re4+ {[%clk 0:00:44.4]} 61. Kf3 {[%clk 0:00:45.1]} 61... Re7
{[%clk 0:00:46]} 62. Rb8+ {[%clk 0:00:44.8]} 62... Re8 {[%clk 0:00:47.1]} 63.
Rb7 {[%clk 0:00:43.5]} 63... Rc8 {[%clk 0:00:42.7]} 64. Kf4 {[%clk 0:00:43.3]}
64... Rc4+ {[%clk 0:00:43.4]} 65. Kf3 {[%clk 0:00:43.9]} 65... Kg7 {[%clk
0:00:41.6]} 66. Kg3 {[%clk 0:00:43.7]} 66... Re4 {[%clk 0:00:37.5]} 67. Kf3
{[%clk 0:00:44.6]} 67... Re6 {[%clk 0:00:39.4]} 68. Kf4 {[%clk 0:00:44.1]} 68...
Re1 {[%clk 0:00:39.1]} 69. Ra7 {[%clk 0:00:44.5]} 69... Rf1+ {[%clk 0:00:40.3]}
70. Kg4 {[%clk 0:00:44.9]} 70... Rg1+ {[%clk 0:00:41.2]} 71. Kf4 {[%clk
0:00:45.6]} 71... Kf8 {[%clk 0:00:41.8]} 72. Rb7 {[%clk 0:00:45.6]} 72... Ke8
{[%clk 0:00:41.5]} 73. Ra7 {[%clk 0:00:46.1]} 73... Re1 {[%clk 0:00:42.5]} 74.
Kg4 {[%clk 0:00:46.3]} 74... Re4+ {[%clk 0:00:42.4]} 75. Kf3 {[%clk 0:00:46.3]}
75... Re7 {[%clk 0:00:44.3]} 76. Ra6 {[%clk 0:00:47.2]} 76... Re6 {[%clk
0:00:42.8]} 77. Ra7 {[%clk 0:00:47.5]} 77... Re7 {[%clk 0:00:43.8]} 78. Ra6
{[%clk 0:00:48.2]} 78... Rd7 {[%clk 0:00:43.8]} 79. Kf4 {[%clk 0:00:47.1]} 79...
Ke7 {[%clk 0:00:42.8]} 80. Ke4 {[%clk 0:00:46.9]} 80... Rd6 {[%clk 0:00:40.8]}
81. Ra8 {[%clk 0:00:42.2]} 81... Re6+ {[%clk 0:00:39.4]} 82. Kf4 {[%clk
0:00:42.1]} 82... Rb6 {[%clk 0:00:38.2]} 83. Ra4 {[%clk 0:00:37.8]} 83... Ke6
{[%clk 0:00:33.6]} 84. Re4+ {[%clk 0:00:37.5]} 84... Kd6 {[%clk 0:00:34.9]} 85.
Rd4+ {[%clk 0:00:38.1]} 85... Ke7 {[%clk 0:00:35.8]} 86. Re4+ {[%clk 0:00:38.8]}
86... Re6 {[%clk 0:00:36.4]} 87. Ra4 {[%clk 0:00:39.2]} 87... Rc6 {[%clk
0:00:35.2]} 88. Re4+ {[%clk 0:00:39.7]} 88... Kd6 {[%clk 0:00:34.1]} 89. Rd4+
{[%clk 0:00:40.1]} 89... Ke7 {[%clk 0:00:29.5]} 90. Re4+ {[%clk 0:00:40.9]}
90... Re6 {[%clk 0:00:31.4]} 91. Ra4 {[%clk 0:00:41.6]} 91... Rc6 {[%clk
0:00:25.4]} 92. Re4+ {[%clk 0:00:42.1]} 1/2-1/2

[Event "*** Titled Tuesday 3|2 Blitz"]
[Site "Chess.com"]
[Date "2015.07.07"]
[Round "4"]
[White "MasterLeif"]
[Black "eltenedor"]
[Result "0-1"]
[WhiteElo "2269"]
[BlackElo "2016"]
[TimeControl "180+2"]
[EndTime "11:44:04 PDT"]
[Termination "eltenedor won by checkmate"]

1. e4 {[%clk 0:03:01.9]} 1... c5 {[%clk 0:03:00.1]} 2. Nf3 {[%clk 0:02:59.9]}
2... d6 {[%clk 0:03:01]} 3. d4 {[%clk 0:02:56.2]} 3... cxd4 {[%clk 0:03:01.8]}
4. Nxd4 {[%clk 0:02:58.1]} 4... Nf6 {[%clk 0:03:02.7]} 5. Nc3 {[%clk 0:02:59.1]}
5... g6 {[%clk 0:03:03.4]} 6. Be3 {[%clk 0:03:00.1]} 6... a6 {[%clk 0:03:04.1]}
7. f3 {[%clk 0:03:00.3]} 7... b5 {[%clk 0:03:04.8]} 8. Qd2 {[%clk 0:03:01.4]}
8... Bb7 {[%clk 0:03:03.4]} 9. O-O-O {[%clk 0:03:02.4]} 9... Nbd7 {[%clk
0:03:03.5]} 10. h4 {[%clk 0:03:02.9]} 10... h6 {[%clk 0:02:56.7]} 11. Kb1 {[%clk
0:03:03.5]} 11... b4 {[%clk 0:02:57.3]} 12. Na4 {[%clk 0:02:58.1]} 12... Qa5
{[%clk 0:02:14.3]} 13. b3 {[%clk 0:02:54.9]} 13... e5 {[%clk 0:02:12.7]} 14. Ne2
{[%clk 0:02:51.2]} 14... d5 {[%clk 0:02:09]} 15. exd5 {[%clk 0:02:47.8]} 15...
Nxd5 {[%clk 0:02:08.8]} 16. Ng3 {[%clk 0:02:43.6]} 16... Nc5 {[%clk 0:01:07.6]}
17. Nxc5 {[%clk 0:02:33.3]} 17... Nc3+ {[%clk 0:00:58.9]} 18. Kc1 {[%clk
0:02:32.6]} 18... Qa3# {[%clk 0:00:58.4]} 0-1

[Event "*** Titled Tuesday 3|2 Blitz"]
[Site "Chess.com"]
[Date "2015.07.07"]
[Round "4"]
[White "Keranke"]
[Black "Lupul_Cenusiu"]
[Result "0-1"]
[WhiteElo "2531"]
[BlackElo "2390"]
[TimeControl "180+2"]
[EndTime "11:45:46 PDT"]
[Termination "Lupul_Cenusiu won by resignation"]

1. d4 {[%clk 0:03:00]} 1... Nf6 {[%clk 0:03:00.2]} 2. c4 {[%clk 0:03:00.4]} 2...
g6 {[%clk 0:02:59.5]} 3. g3 {[%clk 0:03:01.3]} 3... Bg7 {[%clk 0:03:00.7]} 4.
Bg2 {[%clk 0:03:02.7]} 4... O-O {[%clk 0:03:02.3]} 5. Nf3 {[%clk 0:03:04.2]}
5... c6 {[%clk 0:03:03.5]} 6. O-O {[%clk 0:03:04.9]} 6... d6 {[%clk 0:03:04.7]}
7. Nc3 {[%clk 0:03:05.7]} 7... Bf5 {[%clk 0:03:05.7]} 8. Ne1 {[%clk 0:03:06.1]}
8... Qb6 {[%clk 0:03:05.2]} 9. e4 {[%clk 0:03:02.2]} 9... Bg4 {[%clk 0:03:05.9]}
10. f3 {[%clk 0:03:01.7]} 10... Be6 {[%clk 0:03:03.9]} 11. b3 {[%clk 0:02:53.9]}
11... Nxe4 {[%clk 0:02:55.3]} 12. Ne2 {[%clk 0:02:31.6]} 12... Nc3 {[%clk
0:02:45.5]} 13. Nxc3 {[%clk 0:02:13]} 13... Qxd4+ {[%clk 0:02:44]} 14. Qxd4
{[%clk 0:02:10.7]} 14... Bxd4+ {[%clk 0:02:44.3]} 15. Be3 {[%clk 0:02:10]} 15...
Bxe3+ {[%clk 0:02:42.8]} 16. Kh1 {[%clk 0:02:11.3]} 16... Bd4 {[%clk 0:02:43.6]}
17. Rc1 {[%clk 0:02:11.7]} 17... Bxc3 {[%clk 0:02:43.6]} 18. Rxc3 {[%clk
0:02:12.7]} 18... a5 {[%clk 0:02:42.9]} 19. f4 {[%clk 0:02:13.3]} 19... Na6
{[%clk 0:02:42.8]} 20. a3 {[%clk 0:02:10.7]} 20... Nc5 {[%clk 0:02:43.3]} 21.
Nc2 {[%clk 0:02:10.5]} 21... a4 {[%clk 0:02:38.8]} 22. b4 {[%clk 0:02:11.5]}
22... Nb3 {[%clk 0:02:39.9]} 23. Re1 {[%clk 0:02:10.2]} 23... Rfe8 {[%clk
0:02:40.3]} 24. h3 {[%clk 0:02:08.8]} 24... h5 {[%clk 0:02:40.7]} 25. Kh2 {[%clk
0:02:09.4]} 25... Kg7 {[%clk 0:02:41.3]} 26. Bf3 {[%clk 0:02:06.6]} 26... Rac8
{[%clk 0:02:34.4]} 27. Rd1 {[%clk 0:01:59.3]} 27... Red8 {[%clk 0:02:28]} 28.
Ne3 {[%clk 0:02:00.6]} 28... b5 {[%clk 0:02:27.2]} 29. Be2 {[%clk 0:01:44.8]}
29... c5 {[%clk 0:02:21.2]} 30. cxb5 {[%clk 0:01:37.8]} 30... cxb4 {[%clk
0:02:21.7]} 31. Rxc8 {[%clk 0:01:39.3]} 31... Rxc8 {[%clk 0:02:22.8]} 32. axb4
{[%clk 0:01:39.1]} 32... a3 {[%clk 0:02:23.8]} 33. b6 {[%clk 0:01:40.7]} 33...
a2 {[%clk 0:02:23.3]} 34. b7 {[%clk 0:01:09.3]} 34... Rb8 {[%clk 0:02:23.3]} 35.
Nc2 {[%clk 0:01:10.8]} 35... Rxb7 {[%clk 0:02:23.7]} 36. Ba6 {[%clk 0:01:05]}
36... Rc7 {[%clk 0:02:19.3]} 37. Na1 {[%clk 0:01:06.2]} 37... Nxa1 {[%clk
0:02:20.2]} 38. Rxa1 {[%clk 0:01:07.8]} 38... Rc2+ {[%clk 0:02:21.2]} 0-1

[Event "*** Titled Tuesday 3|2 Blitz"]
[Site "Chess.com"]
[Date "2015.07.07"]
[Round "4"]
[White "GeorgMeier"]
[Black "zmaj23"]
[Result "1-0"]
[WhiteElo "2736"]
[BlackElo "2445"]
[TimeControl "180+2"]
[EndTime "11:46:04 PDT"]
[Termination "GeorgMeier won by resignation"]

1. Nf3 {[%clk 0:03:01.9]} 1... c5 {[%clk 0:02:59.6]} 2. g3 {[%clk 0:03:03.2]}
2... g6 {[%clk 0:03:00.1]} 3. Bg2 {[%clk 0:03:03.4]} 3... Bg7 {[%clk 0:03:01.8]}
4. c4 {[%clk 0:03:04.9]} 4... Nc6 {[%clk 0:03:01.4]} 5. Nc3 {[%clk 0:03:06.4]}
5... e5 {[%clk 0:03:01.5]} 6. d3 {[%clk 0:03:06.1]} 6... Nge7 {[%clk 0:03:00.9]}
7. a3 {[%clk 0:03:06.8]} 7... a5 {[%clk 0:03:01.5]} 8. O-O {[%clk 0:02:58.3]}
8... d6 {[%clk 0:03:00.6]} 9. Rb1 {[%clk 0:02:59.3]} 9... h6 {[%clk 0:02:58.7]}
10. Bd2 {[%clk 0:02:58.8]} 10... O-O {[%clk 0:02:59.1]} 11. Ne1 {[%clk
0:02:58.5]} 11... Be6 {[%clk 0:02:56.6]} 12. Nc2 {[%clk 0:02:59.9]} 12... d5
{[%clk 0:02:56.9]} 13. cxd5 {[%clk 0:03:01.8]} 13... Nxd5 {[%clk 0:02:57.6]} 14.
Ne3 {[%clk 0:03:03.7]} 14... Nde7 {[%clk 0:02:51.5]} 15. Na4 {[%clk 0:03:00.8]}
15... b6 {[%clk 0:02:46]} 16. b4 {[%clk 0:03:01.4]} 16... axb4 {[%clk
0:02:46.6]} 17. axb4 {[%clk 0:03:02.3]} 17... Qd6 {[%clk 0:02:14.3]} 18. Nxb6
{[%clk 0:02:50.5]} 18... Ra2 {[%clk 0:02:09.7]} 19. Nec4 {[%clk 0:02:36]} 19...
Qc7 {[%clk 0:01:15.6]} 20. bxc5 {[%clk 0:02:19.7]} 20... Nd4 {[%clk 0:01:15]}
21. e3 {[%clk 0:02:20.2]} 21... Ndf5 {[%clk 0:00:03]} 22. Rb5 {[%clk 0:02:19.3]}
22... Bd7 {[%clk 0:00:03.7]} 23. Nxd7 {[%clk 0:02:18.3]} 23... Qxd7 {[%clk
0:00:05.6]} 24. Qb1 {[%clk 0:02:18.1]} 24... Ra7 {[%clk 0:00:06.1]} 25. Qb3
{[%clk 0:02:08.5]} 25... Rc8 {[%clk 0:00:06.9]} 26. Nb6 {[%clk 0:02:08.4]} 1-0

[Event "*** Titled Tuesday 3|2 Blitz"]
[Site "Chess.com"]
[Date "2015.07.07"]
[Round "4"]
[White "Keaton87"]
[Black "LuckyTiger"]
[Result "0-1"]
[WhiteElo "2431"]
[BlackElo "2448"]
[TimeControl "180+2"]
[EndTime "11:46:21 PDT"]
[Termination "LuckyTiger won by resignation"]

1. d4 {[%clk 0:03:01.9]} 1... Nf6 {[%clk 0:03:00.7]} 2. Nf3 {[%clk 0:03:02.8]}
2... c5 {[%clk 0:03:01.9]} 3. d5 {[%clk 0:02:57.1]} 3... g6 {[%clk 0:03:03.3]}
4. c4 {[%clk 0:02:57]} 4... b5 {[%clk 0:03:04]} 5. cxb5 {[%clk 0:02:55.4]} 5...
a6 {[%clk 0:03:05.4]} 6. bxa6 {[%clk 0:02:55.6]} 6... Bg7 {[%clk 0:03:03.7]} 7.
Nc3 {[%clk 0:02:56.5]} 7... d6 {[%clk 0:03:00.3]} 8. e4 {[%clk 0:02:57.5]} 8...
Qa5 {[%clk 0:02:58.5]} 9. Bb5+ {[%clk 0:02:53.9]} 9... Nfd7 {[%clk 0:02:57.4]}
10. Be2 {[%clk 0:02:19.1]} 10... Bxa6 {[%clk 0:02:57.5]} 11. Bxa6 {[%clk
0:02:18.7]} 11... Qxa6 {[%clk 0:02:57.9]} 12. Qe2 {[%clk 0:02:16.4]} 12... O-O
{[%clk 0:02:58.2]} 13. Qxa6 {[%clk 0:02:12.7]} 13... Nxa6 {[%clk 0:03:00.1]} 14.
O-O {[%clk 0:02:13.5]} 14... Nb4 {[%clk 0:02:59.1]} 15. Bd2 {[%clk 0:01:47.9]}
15... Nb6 {[%clk 0:02:40.3]} 16. b3 {[%clk 0:01:42]} 16... f5 {[%clk 0:02:40.6]}
17. Ng5 {[%clk 0:01:33.8]} 17... fxe4 {[%clk 0:02:35.7]} 18. Ne6 {[%clk
0:01:34]} 18... N4xd5 {[%clk 0:01:43.9]} 19. Nxe4 {[%clk 0:01:06.8]} 19... Bxa1
{[%clk 0:01:39.3]} 20. Nxf8 {[%clk 0:01:07.6]} 20... Rxa2 {[%clk 0:01:20.4]} 21.
Ne6 {[%clk 0:01:08.1]} 21... Nf6 {[%clk 0:01:20]} 22. Nxf6+ {[%clk 0:01:07.4]}
22... Bxf6 {[%clk 0:01:21.9]} 23. Bh6 {[%clk 0:01:03.8]} 23... Kf7 {[%clk
0:01:20.9]} 24. Ng5+ {[%clk 0:00:58.3]} 24... Bxg5 {[%clk 0:01:20.2]} 25. Bxg5
{[%clk 0:01:00.2]} 25... Rb2 {[%clk 0:01:20.5]} 26. h4 {[%clk 0:00:57.4]} 26...
Rxb3 {[%clk 0:01:20]} 27. Re1 {[%clk 0:00:58.3]} 27... Nd5 {[%clk 0:01:20.4]}
28. Ra1 {[%clk 0:00:56.6]} 28... c4 {[%clk 0:01:16.4]} 29. Ra5 {[%clk
0:00:57.3]} 29... Ke6 {[%clk 0:01:14.6]} 0-1

[Event "*** Titled Tuesday 3|2 Blitz"]
[Site "Chess.com"]
[Date "2015.07.07"]
[Round "4"]
[White "Schemato"]
[Black "PauloCesarCosta"]
[Result "0-1"]
[WhiteElo "2009"]
[BlackElo "2021"]
[TimeControl "180+2"]
[EndTime "11:47:33 PDT"]
[Termination "PauloCesarCosta won by resignation"]

1. c4 {[%clk 0:03:01.9]} 1... Nf6 {[%clk 0:02:47.2]} 2. Nc3 {[%clk 0:03:02]}
2... c6 {[%clk 0:02:48.5]} 3. e4 {[%clk 0:03:00.5]} 3... d6 {[%clk 0:02:42.5]}
4. g3 {[%clk 0:03:01.6]} 4... g6 {[%clk 0:02:42.9]} 5. Bg2 {[%clk 0:03:02.8]}
5... Bg7 {[%clk 0:02:44.5]} 6. Nge2 {[%clk 0:03:03.8]} 6... O-O {[%clk 0:02:46]}
7. O-O {[%clk 0:03:04.5]} 7... b6 {[%clk 0:02:37.9]} 8. d3 {[%clk 0:03:05.5]}
8... Bb7 {[%clk 0:02:38.8]} 9. h3 {[%clk 0:03:04.8]} 9... Nbd7 {[%clk
0:02:39.7]} 10. Be3 {[%clk 0:03:03.5]} 10... Qc7 {[%clk 0:02:38.6]} 11. Rc1
{[%clk 0:03:00.2]} 11... Rfc8 {[%clk 0:02:38.2]} 12. Qd2 {[%clk 0:02:59.2]}
12... Qd8 {[%clk 0:02:38.5]} 13. b3 {[%clk 0:02:51.9]} 13... c5 {[%clk
0:02:26.4]} 14. f4 {[%clk 0:02:50.3]} 14... Bc6 {[%clk 0:02:24.1]} 15. Rf2
{[%clk 0:02:42.9]} 15... Ne8 {[%clk 0:02:16.8]} 16. d4 {[%clk 0:02:35.9]} 16...
cxd4 {[%clk 0:02:10.3]} 17. Nxd4 {[%clk 0:02:36.3]} 17... Bb7 {[%clk 0:02:09.8]}
18. Nd5 {[%clk 0:02:23]} 18... Bxd5 {[%clk 0:02:06.8]} 19. exd5 {[%clk
0:02:23.3]} 19... Nef6 {[%clk 0:01:50.7]} 20. Re1 {[%clk 0:02:13.5]} 20... Nc5
{[%clk 0:01:46.5]} 21. Kh2 {[%clk 0:01:53.8]} 21... Nce4 {[%clk 0:01:43]} 22.
Bxe4 {[%clk 0:01:48.8]} 22... Nxe4 {[%clk 0:01:43.8]} 23. Qe2 {[%clk 0:01:47.9]}
23... Nxf2 {[%clk 0:01:44.5]} 24. Qxf2 {[%clk 0:01:46.3]} 24... Bxd4 {[%clk
0:01:42.6]} 25. Bxd4 {[%clk 0:01:47.1]} 25... Qf8 {[%clk 0:01:39.6]} 26. f5
{[%clk 0:01:41.7]} 26... Rc7 {[%clk 0:01:38.4]} 27. f6 {[%clk 0:01:31.6]} 27...
Re8 {[%clk 0:01:22.6]} 28. fxe7 {[%clk 0:01:26.1]} 28... Rcxe7 {[%clk
0:01:22.2]} 29. h4 {[%clk 0:00:40.8]} 29... f5 {[%clk 0:00:56.1]} 30. Bc3 {[%clk
0:00:40.9]} 30... Rxe1 {[%clk 0:00:55.3]} 31. Bxe1 {[%clk 0:00:37.4]} 31... Qe7
{[%clk 0:00:55.6]} 32. Bc3 {[%clk 0:00:33.1]} 32... Qe2 {[%clk 0:00:55]} 0-1